Workbook

Sheet Pivot Calendar
B1: Pivot Calendar
B3: Select an year and month | G3: 2012
B6: =pivot1!B1 -> Sep
B7: Sun | C7: Mon | D7: Tue | E7: Wed | F7: Thu | G7: Fri | H7: Sat
B8: =IF(pivot1!B5="","",pivot1!B5) ->  | C8: =IF(pivot1!C5="","",pivot1!C5) ->  | D8: =IF(pivot1!D5="","",pivot1!D5) ->  | E8: =IF(pivot1!E5="","",pivot1!E5) ->  | F8: =IF(pivot1!F5="","",pivot1!F5) ->  | G8: =IF(pivot1!G5="","",pivot1!G5) ->  | H8: =IF(pivot1!H5="","",pivot1!H5) -> 1
B9: =IF(pivot1!B6="","",pivot1!B6) -> 2 | C9: =IF(pivot1!C6="","",pivot1!C6) -> 3 | D9: =IF(pivot1!D6="","",pivot1!D6) -> 4 | E9: =IF(pivot1!E6="","",pivot1!E6) -> 5 | F9: =IF(pivot1!F6="","",pivot1!F6) -> 6 | G9: =IF(pivot1!G6="","",pivot1!G6) -> 7 | H9: =IF(pivot1!H6="","",pivot1!H6) -> 8
B10: =IF(pivot1!B7="","",pivot1!B7) -> 9 | C10: =IF(pivot1!C7="","",pivot1!C7) -> 10 | D10: =IF(pivot1!D7="","",pivot1!D7) -> 11 | E10: =IF(pivot1!E7="","",pivot1!E7) -> 12 | F10: =IF(pivot1!F7="","",pivot1!F7) -> 13 | G10: =IF(pivot1!G7="","",pivot1!G7) -> 14 | H10: =IF(pivot1!H7="","",pivot1!H7) -> 15
B11: =IF(pivot1!B8="","",pivot1!B8) -> 16 | C11: =IF(pivot1!C8="","",pivot1!C8) -> 17 | D11: =IF(pivot1!D8="","",pivot1!D8) -> 18 | E11: =IF(pivot1!E8="","",pivot1!E8) -> 19 | F11: =IF(pivot1!F8="","",pivot1!F8) -> 20 | G11: =IF(pivot1!G8="","",pivot1!G8) -> 21 | H11: =IF(pivot1!H8="","",pivot1!H8) -> 22
B12: =IF(pivot1!B9="","",pivot1!B9) -> 23 | C12: =IF(pivot1!C9="","",pivot1!C9) -> 24 | D12: =IF(pivot1!D9="","",pivot1!D9) -> 25 | E12: =IF(pivot1!E9="","",pivot1!E9) -> 26 | F12: =IF(pivot1!F9="","",pivot1!F9) -> 27 | G12: =IF(pivot1!G9="","",pivot1!G9) -> 28 | H12: =IF(pivot1!H9="","",pivot1!H9) -> 29
B13: =IF(pivot1!B10="","",pivot1!B10) -> 30 | C13: =IF(pivot1!C10="","",pivot1!C10) ->  | D13: =IF(pivot1!D10="","",pivot1!D10) ->  | E13: =IF(pivot1!E10="","",pivot1!E10) ->  | F13: =IF(pivot1!F10="","",pivot1!F10) ->  | G13: =IF(pivot1!G10="","",pivot1!G10) ->  | H13: =IF(pivot1!H10="","",pivot1!H10) -> 
B16: =B6 -> Sep
B17: =B7 -> Sun | C17: =C7 -> Mon | D17: Tue | E17: Wed | F17: Thu | G17: Fri | H17: Sat
B18: =B8 ->  | H18: 1 | P18: 1
B19: =INDEX(tblChosen,$P18,B$39) ->  | C19: =INDEX(tblChosen,$P18,C$39) ->  | D19: =INDEX(tblChosen,$P18,D$39) ->  | E19: =INDEX(tblChosen,$P18,E$39) ->  | F19: =INDEX(tblChosen,$P18,F$39) ->  | G19: =INDEX(tblChosen,$P18,G$39) ->  | H19: =INDEX(tblChosen,$P18,H$39) -> 0.82
B20: =B9 -> 2 | C20: 3 | D20: 4 | E20: 5 | F20: 6 | G20: 7 | H20: 8 | P20: 2
B21: =INDEX(tblChosen,$P20,B$39) -> 0.81 | C21: =INDEX(tblChosen,$P20,C$39) -> 0.82 | D21: =INDEX(tblChosen,$P20,D$39) -> 0.86 | E21: =INDEX(tblChosen,$P20,E$39) -> 0.89 | F21: =INDEX(tblChosen,$P20,F$39) -> 0.93 | G21: =INDEX(tblChosen,$P20,G$39) -> 0.84 | H21: =INDEX(tblChosen,$P20,H$39) -> 0.91
B22: =B10 -> 9 | C22: 10 | D22: 11 | E22: 12 | F22: 13 | G22: 14 | H22: 15 | P22: 3
B23: =INDEX(tblChosen,$P22,B$39) -> 0.84 | C23: =INDEX(tblChosen,$P22,C$39) -> 0.93 | D23: =INDEX(tblChosen,$P22,D$39) -> 0.88 | E23: =INDEX(tblChosen,$P22,E$39) -> 0.84 | F23: =INDEX(tblChosen,$P22,F$39) -> 0.84 | G23: =INDEX(tblChosen,$P22,G$39) -> 0.83 | H23: =INDEX(tblChosen,$P22,H$39) -> 0.78
B24: =B11 -> 16 | C24: 17 | D24: 18 | E24: 19 | F24: 20 | G24: 21 | H24: 22 | J24: References: | P24: 4
B25: =INDEX(tblChosen,$P24,B$39) -> 0.78 | C25: =INDEX(tblChosen,$P24,C$39) -> 0.81 | D25: =INDEX(tblChosen,$P24,D$39) -> 0.86 | E25: =INDEX(tblChosen,$P24,E$39) -> 0.91 | F25: =INDEX(tblChosen,$P24,F$39) -> 0.77 | G25: =INDEX(tblChosen,$P24,G$39) -> 0.87 | H25: =INDEX(tblChosen,$P24,H$39) -> 0.84
B26: =B12 -> 23 | C26: 24 | D26: 25 | E26: 26 | F26: 27 | G26: 28 | H26: 29 | J26: Rob's Calendar Chart | P26: 5
B27: =INDEX(tblChosen,$P26,B$39) -> 0.93 | C27: =INDEX(tblChosen,$P26,C$39) -> 0.92 | D27: =INDEX(tblChosen,$P26,D$39) -> 0.89 | E27: =INDEX(tblChosen,$P26,E$39) -> 0.84 | F27: =INDEX(tblChosen,$P26,F$39) -> 0.79 | G27: =INDEX(tblChosen,$P26,G$39) -> 0.87 | H27: =INDEX(tblChosen,$P26,H$39) -> 0.8
B28: =B13 -> 30 | J28: Learn how this is made: Video | P28: 6
B29: =INDEX(tblChosen,$P28,B$39) -> 0.98 | C29: =INDEX(tblChosen,$P28,C$39) ->  | D29: =INDEX(tblChosen,$P28,D$39) ->  | E29: =INDEX(tblChosen,$P28,E$39) ->  | F29: =INDEX(tblChosen,$P28,F$39) ->  | G29: =INDEX(tblChosen,$P28,G$39) ->  | H29: =INDEX(tblChosen,$P28,H$39) -> 
B31: Legend:
B33: =TEXT(MIN(tblChosen),IF(valMetric<3,"0%","0")) -> 77% | E33: =TEXT(PERCENTILE(tblChosen,0.5),IF(valMetric<3,"0%","0")) -> 84% | H33: =TEXT(MAX(tblChosen),IF(valMetric<3,"0%","0")) -> 98%
B39: 1 | C39: 2 | D39: 3 | E39: 4 | F39: 5 | G39: 6 | H39: 7

Sheet pivot2
A3: Sum of Employee Attendance | B3: Column Labels
A4: Row Labels | B4: 1 | C4: 2 | D4: 3 | E4: 4 | F4: 5 | G4: 6 | H4: 7
A5: 1 | H5: 0.82 | S5: =IF(B5="","",B5) ->  | T5: =IF(C5="","",C5) ->  | U5: =IF(D5="","",D5) ->  | V5: =IF(E5="","",E5) ->  | W5: =IF(F5="","",F5) ->  | X5: =IF(G5="","",G5) ->  | Y5: =IF(H5="","",H5) -> 0.82
A6: 2 | B6: 0.81 | C6: 0.82 | D6: 0.86 | E6: 0.89 | F6: 0.93 | G6: 0.84 | H6: 0.91 | S6: =IF(B6="","",B6) -> 0.81 | T6: 0.82 | U6: 0.86 | V6: 0.89 | W6: 0.93 | X6: 0.84 | Y6: 0.91
A7: 3 | B7: 0.84 | C7: 0.93 | D7: 0.88 | E7: 0.84 | F7: 0.84 | G7: 0.83 | H7: 0.78 | S7: 0.84 | T7: 0.93 | U7: 0.88 | V7: 0.84 | W7: 0.84 | X7: 0.83 | Y7: 0.78
A8: 4 | B8: 0.78 | C8: 0.81 | D8: 0.86 | E8: 0.91 | F8: 0.77 | G8: 0.87 | H8: 0.84 | S8: 0.78 | T8: 0.81 | U8: 0.86 | V8: 0.91 | W8: 0.77 | X8: 0.87 | Y8: 0.84
A9: 5 | B9: 0.93 | C9: 0.92 | D9: 0.89 | E9: 0.84 | F9: 0.79 | G9: 0.87 | H9: 0.8 | S9: 0.93 | T9: 0.92 | U9: 0.89 | V9: 0.84 | W9: 0.79 | X9: 0.87 | Y9: 0.8
A10: 6 | B10: 0.98 | S10: 0.98
A14: Sum of Productivity | B14: Column Labels
A15: Row Labels | B15: 1 | C15: 2 | D15: 3 | E15: 4 | F15: 5 | G15: 6 | H15: 7
A16: 1 | H16: 0.88 | S16: =IF(B16="","",B16) ->  | T16: =IF(C16="","",C16) ->  | U16: =IF(D16="","",D16) ->  | V16: =IF(E16="","",E16) ->  | W16: =IF(F16="","",F16) ->  | X16: =IF(G16="","",G16) ->  | Y16: =IF(H16="","",H16) -> 0.88
A17: 2 | B17: 0.97 | C17: 0.91 | D17: 0.75 | E17: 0.96 | F17: 0.9 | G17: 0.81 | H17: 0.98 | S17: 0.97 | T17: 0.91 | U17: 0.75 | V17: 0.96 | W17: 0.9 | X17: 0.81 | Y17: 0.98
A18: 3 | B18: 0.91 | C18: 0.84 | D18: 0.79 | E18: 1 | F18: 0.75 | G18: 0.93 | H18: 0.86 | S18: 0.91 | T18: 0.84 | U18: 0.79 | V18: 1 | W18: 0.75 | X18: 0.93 | Y18: 0.86
A19: 4 | B19: 0.87 | C19: 0.89 | D19: 0.99 | E19: 0.97 | F19: 0.97 | G19: 0.88 | H19: 1 | S19: 0.87 | T19: 0.89 | U19: 0.99 | V19: 0.97 | W19: 0.97 | X19: 0.88 | Y19: 1
A20: 5 | B20: 1 | C20: 0.86 | D20: 0.81 | E20: 0.79 | F20: 0.79 | G20: 0.84 | H20: 0.79 | S20: 1 | T20: 0.86 | U20: 0.81 | V20: 0.79 | W20: 0.79 | X20: 0.84 | Y20: 0.79
A21: 6 | B21: 0.81 | S21: 0.81
A25: Sum of Defects per million | B25: Column Labels
A26: Row Labels | B26: 1 | C26: 2 | D26: 3 | E26: 4 | F26: 5 | G26: 6 | H26: 7
A27: 1 | H27: 0 | S27: =IF(B27="","",B27) ->  | T27: =IF(C27="","",C27) ->  | U27: =IF(D27="","",D27) ->  | V27: =IF(E27="","",E27) ->  | W27: =IF(F27="","",F27) ->  | X27: =IF(G27="","",G27) ->  | Y27: =IF(H27="","",H27) -> 0
A28: 2 | B28: 4 | C28: 3 | D28: 1 | E28: 2 | F28: 2 | G28: 0 | H28: 2 | S28: 4 | T28: 3 | U28: 1 | V28: 2 | W28: 2 | X28: 0 | Y28: 2
A29: 3 | B29: 3 | C29: 0 | D29: 0 | E29: 2 | F29: 1 | G29: 2 | H29: 3 | S29: 3 | T29: 0 | U29: 0 | V29: 2 | W29: 1 | X29: 2 | Y29: 3
A30: 4 | B30: 3 | C30: 2 | D30: 3 | E30: 1 | F30: 3 | G30: 3 | H30: 4 | S30: 3 | T30: 2 | U30: 3 | V30: 1 | W30: 3 | X30: 3 | Y30: 4
A31: 5 | B31: 2 | C31: 3 | D31: 3 | E31: 0 | F31: 0 | G31: 1 | H31: 3 | S31: 2 | T31: 3 | U31: 3 | V31: 0 | W31: 0 | X31: 1 | Y31: 3
A32: 6 | B32: 3 | S32: 3
S36: Calendar for Chosen metric
S37: =INDEX(lstMetrics,Calcs!$G$3) -> Attendance
S38: 1 | T38: 2 | U38: 3 | V38: 4 | W38: 5 | X38: 6 | Y38: 7
R39: 1 | S39: =INDEX(tblChosen,$R39,S$38) ->  | T39: =INDEX(tblChosen,$R39,T$38) ->  | U39: =INDEX(tblChosen,$R39,U$38) ->  | V39: =INDEX(tblChosen,$R39,V$38) ->  | W39: =INDEX(tblChosen,$R39,W$38) ->  | X39: =INDEX(tblChosen,$R39,X$38) ->  | Y39: =INDEX(tblChosen,$R39,Y$38) -> 0.82
R40: 2 | S40: =INDEX(tblChosen,$R40,S$38) -> 0.81 | T40: =INDEX(tblChosen,$R40,T$38) -> 0.82 | U40: =INDEX(tblChosen,$R40,U$38) -> 0.86 | V40: =INDEX(tblChosen,$R40,V$38) -> 0.89 | W40: =INDEX(tblChosen,$R40,W$38) -> 0.93 | X40: =INDEX(tblChosen,$R40,X$38) -> 0.84 | Y40: =INDEX(tblChosen,$R40,Y$38) -> 0.91
R41: 3 | S41: =INDEX(tblChosen,$R41,S$38) -> 0.84 | T41: =INDEX(tblChosen,$R41,T$38) -> 0.93 | U41: =INDEX(tblChosen,$R41,U$38) -> 0.88 | V41: =INDEX(tblChosen,$R41,V$38) -> 0.84 | W41: =INDEX(tblChosen,$R41,W$38) -> 0.84 | X41: =INDEX(tblChosen,$R41,X$38) -> 0.83 | Y41: =INDEX(tblChosen,$R41,Y$38) -> 0.78
R42: 4 | S42: =INDEX(tblChosen,$R42,S$38) -> 0.78 | T42: =INDEX(tblChosen,$R42,T$38) -> 0.81 | U42: =INDEX(tblChosen,$R42,U$38) -> 0.86 | V42: =INDEX(tblChosen,$R42,V$38) -> 0.91 | W42: =INDEX(tblChosen,$R42,W$38) -> 0.77 | X42: =INDEX(tblChosen,$R42,X$38) -> 0.87 | Y42: =INDEX(tblChosen,$R42,Y$38) -> 0.84
R43: 5 | S43: =INDEX(tblChosen,$R43,S$38) -> 0.93 | T43: =INDEX(tblChosen,$R43,T$38) -> 0.92 | U43: =INDEX(tblChosen,$R43,U$38) -> 0.89 | V43: =INDEX(tblChosen,$R43,V$38) -> 0.84 | W43: =INDEX(tblChosen,$R43,W$38) -> 0.79 | X43: =INDEX(tblChosen,$R43,X$38) -> 0.87 | Y43: =INDEX(tblChosen,$R43,Y$38) -> 0.8
R44: 6 | S44: =INDEX(tblChosen,$R44,S$38) -> 0.98 | T44: =INDEX(tblChosen,$R44,T$38) ->  | U44: =INDEX(tblChosen,$R44,U$38) ->  | V44: =INDEX(tblChosen,$R44,V$38) ->  | W44: =INDEX(tblChosen,$R44,W$38) ->  | X44: =INDEX(tblChosen,$R44,X$38) ->  | Y44: =INDEX(tblChosen,$R44,Y$38) -> 

Sheet pivot1
A1: Month | B1: Sep
A3: Sum of Day | B3: Column Labels
A4: Row Labels | B4: 1 | C4: 2 | D4: 3 | E4: 4 | F4: 5 | G4: 6 | H4: 7
A5: 1 | H5: 1
A6: 2 | B6: 2 | C6: 3 | D6: 4 | E6: 5 | F6: 6 | G6: 7 | H6: 8
A7: 3 | B7: 9 | C7: 10 | D7: 11 | E7: 12 | F7: 13 | G7: 14 | H7: 15
A8: 4 | B8: 16 | C8: 17 | D8: 18 | E8: 19 | F8: 20 | G8: 21 | H8: 22
A9: 5 | B9: 23 | C9: 24 | D9: 25 | E9: 26 | F9: 27 | G9: 28 | H9: 29
A10: 6 | B10: 30

Sheet Calcs
B2: Selected Year | D2: ='Pivot Calendar'!G3 -> 2012 | F2: Weekstart | G2: 1 | M2: Attendance
B3: Leap Year? | D3: =DATE(D2+1,1,1)-$B$6=366 -> TRUE | F3: Chosen metric | G3: 1 | M3: Productivity
M4: Defects (per Mn)
B5: Date | C5: Day | D5: Month | E5: Year | F5: Weekday | G5: Weeknum | H5: Employee Attendance | I5: Productivity | J5: Defects per million
B6: =DATE($D$2,1,1) -> 2012-01-01 | C6: =DAY(B6) -> 1 | D6: =TEXT(B6,"mmm") -> Jan | E6: =YEAR(B6) -> 2012 | F6: =WEEKDAY(B6,$G$2) -> 1 | G6: 1 | H6: 0.82 | I6: 0.9 | J6: 0
B7: =B6+1 -> 2012-01-02 | C7: =DAY(B7) -> 2 | D7: =TEXT(B7,"mmm") -> Jan | E7: =YEAR(B7) -> 2012 | F7: =WEEKDAY(B7,$G$2) -> 2 | G7: =IF(D7=D6,IF(F7=1,G6+1,G6),1) -> 1 | H7: 0.8 | I7: 0.91 | J7: 4
B8: =B7+1 -> 2012-01-03 | C8: 3 | D8: Jan | E8: 2012 | F8: 3 | G8: =IF(D8=D7,IF(F8=1,G7+1,G7),1) -> 1 | H8: 0.93 | I8: 0.83 | J8: 2
B9: 2012-01-04 | C9: 4 | D9: Jan | E9: 2012 | F9: 4 | G9: 1 | H9: 0.98 | I9: 0.87 | J9: 1
B10: 2012-01-05 | C10: 5 | D10: Jan | E10: 2012 | F10: 5 | G10: 1 | H10: 0.88 | I10: 0.8 | J10: 2
B11: 2012-01-06 | C11: 6 | D11: Jan | E11: 2012 | F11: 6 | G11: 1 | H11: 0.86 | I11: 0.82 | J11: 2
B12: 2012-01-07 | C12: 7 | D12: Jan | E12: 2012 | F12: 7 | G12: 1 | H12: 0.98 | I12: 0.88 | J12: 1
B13: 2012-01-08 | C13: 8 | D13: Jan | E13: 2012 | F13: 1 | G13: 2 | H13: 0.85 | I13: 0.98 | J13: 1
B14: 2012-01-09 | C14: 9 | D14: Jan | E14: 2012 | F14: 2 | G14: 2 | H14: 0.91 | I14: 0.86 | J14: 2
B15: 2012-01-10 | C15: 10 | D15: Jan | E15: 2012 | F15: 3 | G15: 2 | H15: 0.91 | I15: 0.8 | J15: 3
B16: 2012-01-11 | C16: 11 | D16: Jan | E16: 2012 | F16: 4 | G16: 2 | H16: 0.78 | I16: 0.85 | J16: 3
B17: 2012-01-12 | C17: 12 | D17: Jan | E17: 2012 | F17: 5 | G17: 2 | H17: 0.81 | I17: 0.99 | J17: 3
B18: 2012-01-13 | C18: 13 | D18: Jan | E18: 2012 | F18: 6 | G18: 2 | H18: 0.88 | I18: 0.82 | J18: 4
B19: 2012-01-14 | C19: 14 | D19: Jan | E19: 2012 | F19: 7 | G19: 2 | H19: 0.95 | I19: 0.92 | J19: 1
B20: 2012-01-15 | C20: 15 | D20: Jan | E20: 2012 | F20: 1 | G20: 3 | H20: 1 | I20: 0.92 | J20: 0
B21: 2012-01-16 | C21: 16 | D21: Jan | E21: 2012 | F21: 2 | G21: 3 | H21: 0.85 | I21: 0.86 | J21: 1
B22: 2012-01-17 | C22: 17 | D22: Jan | E22: 2012 | F22: 3 | G22: 3 | H22: 0.76 | I22: 0.81 | J22: 3
B23: 2012-01-18 | C23: 18 | D23: Jan | E23: 2012 | F23: 4 | G23: 3 | H23: 0.9 | I23: 0.91 | J23: 3
B24: 2012-01-19 | C24: 19 | D24: Jan | E24: 2012 | F24: 5 | G24: 3 | H24: 0.88 | I24: 0.77 | J24: 2
B25: 2012-01-20 | C25: 20 | D25: Jan | E25: 2012 | F25: 6 | G25: 3 | H25: 0.96 | I25: 0.86 | J25: 4
B26: 2012-01-21 | C26: 21 | D26: Jan | E26: 2012 | F26: 7 | G26: 3 | H26: 0.78 | I26: 0.75 | J26: 0
B27: 2012-01-22 | C27: 22 | D27: Jan | E27: 2012 | F27: 1 | G27: 4 | H27: 0.97 | I27: 0.75 | J27: 0
B28: 2012-01-23 | C28: 23 | D28: Jan | E28: 2012 | F28: 2 | G28: 4 | H28: 0.81 | I28: 1 | J28: 1
B29: 2012-01-24 | C29: 24 | D29: Jan | E29: 2012 | F29: 3 | G29: 4 | H29: 0.76 | I29: 0.93 | J29: 4
B30: 2012-01-25 | C30: 25 | D30: Jan | E30: 2012 | F30: 4 | G30: 4 | H30: 0.87 | I30: 0.93 | J30: 4
B31: 2012-01-26 | C31: 26 | D31: Jan | E31: 2012 | F31: 5 | G31: 4 | H31: 0.93 | I31: 0.89 | J31: 1
B32: 2012-01-27 | C32: 27 | D32: Jan | E32: 2012 | F32: 6 | G32: 4 | H32: 0.81 | I32: 0.92 | J32: 3
B33: 2012-01-28 | C33: 28 | D33: Jan | E33: 2012 | F33: 7 | G33: 4 | H33: 0.89 | I33: 0.97 | J33: 3
B34: 2012-01-29 | C34: 29 | D34: Jan | E34: 2012 | F34: 1 | G34: 5 | H34: 0.87 | I34: 0.94 | J34: 1
B35: 2012-01-30 | C35: 30 | D35: Jan | E35: 2012 | F35: 2 | G35: 5 | H35: 0.88 | I35: 0.84 | J35: 3
B36: 2012-01-31 | C36: 31 | D36: Jan | E36: 2012 | F36: 3 | G36: 5 | H36: 0.86 | I36: 0.85 | J36: 2
B37: 2012-02-01 | C37: 1 | D37: Feb | E37: 2012 | F37: 4 | G37: 1 | H37: 0.99 | I37: 0.88 | J37: 1
B38: 2012-02-02 | C38: 2 | D38: Feb | E38: 2012 | F38: 5 | G38: 1 | H38: 0.92 | I38: 0.81 | J38: 0
B39: 2012-02-03 | C39: 3 | D39: Feb | E39: 2012 | F39: 6 | G39: 1 | H39: 0.8 | I39: 0.77 | J39: 3
B40: 2012-02-04 | C40: 4 | D40: Feb | E40: 2012 | F40: 7 | G40: 1 | H40: 0.75 | I40: 0.94 | J40: 0
B41: 2012-02-05 | C41: 5 | D41: Feb | E41: 2012 | F41: 1 | G41: 2 | H41: 0.94 | I41: 0.97 | J41: 3
B42: 2012-02-06 | C42: 6 | D42: Feb | E42: 2012 | F42: 2 | G42: 2 | H42: 0.82 | I42: 0.88 | J42: 0
B43: 2012-02-07 | C43: 7 | D43: Feb | E43: 2012 | F43: 3 | G43: 2 | H43: 0.98 | I43: 0.96 | J43: 3
B44: 2012-02-08 | C44: 8 | D44: Feb | E44: 2012 | F44: 4 | G44: 2 | H44: 0.94 | I44: 0.8 | J44: 4
B45: 2012-02-09 | C45: 9 | D45: Feb | E45: 2012 | F45: 5 | G45: 2 | H45: 0.78 | I45: 0.85 | J45: 3
B46: 2012-02-10 | C46: 10 | D46: Feb | E46: 2012 | F46: 6 | G46: 2 | H46: 0.99 | I46: 0.92 | J46: 0
B47: 2012-02-11 | C47: 11 | D47: Feb | E47: 2012 | F47: 7 | G47: 2 | H47: 0.9 | I47: 0.92 | J47: 4
B48: 2012-02-12 | C48: 12 | D48: Feb | E48: 2012 | F48: 1 | G48: 3 | H48: 0.89 | I48: 0.85 | J48: 3
B49: 2012-02-13 | C49: 13 | D49: Feb | E49: 2012 | F49: 2 | G49: 3 | H49: 0.92 | I49: 1 | J49: 1
B50: 2012-02-14 | C50: 14 | D50: Feb | E50: 2012 | F50: 3 | G50: 3 | H50: 0.83 | I50: 0.92 | J50: 1
B51: 2012-02-15 | C51: 15 | D51: Feb | E51: 2012 | F51: 4 | G51: 3 | H51: 0.93 | I51: 0.75 | J51: 1
B52: 2012-02-16 | C52: 16 | D52: Feb | E52: 2012 | F52: 5 | G52: 3 | H52: 0.82 | I52: 0.84 | J52: 4
B53: 2012-02-17 | C53: 17 | D53: Feb | E53: 2012 | F53: 6 | G53: 3 | H53: 0.81 | I53: 0.97 | J53: 4
B54: 2012-02-18 | C54: 18 | D54: Feb | E54: 2012 | F54: 7 | G54: 3 | H54: 0.75 | I54: 0.96 | J54: 4
B55: 2012-02-19 | C55: 19 | D55: Feb | E55: 2012 | F55: 1 | G55: 4 | H55: 0.98 | I55: 0.83 | J55: 0
B56: 2012-02-20 | C56: 20 | D56: Feb | E56: 2012 | F56: 2 | G56: 4 | H56: 0.9 | I56: 0.76 | J56: 1
B57: 2012-02-21 | C57: 21 | D57: Feb | E57: 2012 | F57: 3 | G57: 4 | H57: 0.87 | I57: 0.85 | J57: 3
B58: 2012-02-22 | C58: 22 | D58: Feb | E58: 2012 | F58: 4 | G58: 4 | H58: 0.8 | I58: 0.9 | J58: 2
B59: 2012-02-23 | C59: 23 | D59: Feb | E59: 2012 | F59: 5 | G59: 4 | H59: 0.78 | I59: 0.91 | J59: 0
B60: 2012-02-24 | C60: 24 | D60: Feb | E60: 2012 | F60: 6 | G60: 4 | H60: 0.87 | I60: 0.85 | J60: 3
B61: 2012-02-25 | C61: 25 | D61: Feb | E61: 2012 | F61: 7 | G61: 4 | H61: 0.96 | I61: 0.79 | J61: 0
B62: 2012-02-26 | C62: 26 | D62: Feb | E62: 2012 | F62: 1 | G62: 5 | H62: 0.86 | I62: 0.82 | J62: 4
B63: 2012-02-27 | C63: 27 | D63: Feb | E63: 2012 | F63: 2 | G63: 5 | H63: 1 | I63: 0.81 | J63: 4
B64: 2012-02-28 | C64: 28 | D64: Feb | E64: 2012 | F64: 3 | G64: 5 | H64: 0.95 | I64: 0.85 | J64: 3
B65: 2012-02-29 | C65: 29 | D65: Feb | E65: 2012 | F65: 4 | G65: 5 | H65: 0.78 | I65: 0.98 | J65: 2
B66: 2012-03-01 | C66: 1 | D66: Mar | E66: 2012 | F66: 5 | G66: 1 | H66: 0.95 | I66: 0.95 | J66: 4
B67: 2012-03-02 | C67: 2 | D67: Mar | E67: 2012 | F67: 6 | G67: 1 | H67: 0.93 | I67: 0.93 | J67: 1
B68: 2012-03-03 | C68: 3 | D68: Mar | E68: 2012 | F68: 7 | G68: 1 | H68: 0.98 | I68: 0.9 | J68: 0
B69: 2012-03-04 | C69: 4 | D69: Mar | E69: 2012 | F69: 1 | G69: 2 | H69: 0.81 | I69: 0.99 | J69: 4
B70: 2012-03-05 | C70: 5 | D70: Mar | E70: 2012 | F70: 2 | G70: 2 | H70: 0.84 | I70: 0.9 | J70: 0
B71: 2012-03-06 | C71: =DAY(B71) -> 6 | D71: =TEXT(B71,"mmm") -> Mar | E71: =YEAR(B71) -> 2012 | F71: =WEEKDAY(B71,$G$2) -> 3 | G71: 2 | H71: 1 | I71: 0.87 | J71: 0
B72: =B71+1 -> 2012-03-07 | C72: 7 | D72: Mar | E72: 2012 | F72: 4 | G72: =IF(D72=D71,IF(F72=1,G71+1,G71),1) -> 2 | H72: 0.84 | I72: 0.96 | J72: 3
B73: 2012-03-08 | C73: 8 | D73: Mar | E73: 2012 | F73: 5 | G73: 2 | H73: 1 | I73: 0.92 | J73: 4
B74: 2012-03-09 | C74: 9 | D74: Mar | E74: 2012 | F74: 6 | G74: 2 | H74: 0.83 | I74: 0.88 | J74: 2
B75: 2012-03-10 | C75: 10 | D75: Mar | E75: 2012 | F75: 7 | G75: 2 | H75: 0.93 | I75: 0.87 | J75: 2
B76: 2012-03-11 | C76: 11 | D76: Mar | E76: 2012 | F76: 1 | G76: 3 | H76: 0.86 | I76: 0.94 | J76: 4
B77: 2012-03-12 | C77: 12 | D77: Mar | E77: 2012 | F77: 2 | G77: 3 | H77: 0.99 | I77: 0.97 | J77: 2
B78: 2012-03-13 | C78: 13 | D78: Mar | E78: 2012 | F78: 3 | G78: 3 | H78: 0.82 | I78: 0.78 | J78: 2
B79: 2012-03-14 | C79: 14 | D79: Mar | E79: 2012 | F79: 4 | G79: 3 | H79: 0.9 | I79: 0.87 | J79: 0
B80: 2012-03-15 | C80: 15 | D80: Mar | E80: 2012 | F80: 5 | G80: 3 | H80: 0.78 | I80: 0.83 | J80: 3
B81: 2012-03-16 | C81: 16 | D81: Mar | E81: 2012 | F81: 6 | G81: 3 | H81: 0.94 | I81: 0.75 | J81: 2
B82: 2012-03-17 | C82: 17 | D82: Mar | E82: 2012 | F82: 7 | G82: 3 | H82: 0.91 | I82: 0.93 | J82: 3
B83: 2012-03-18 | C83: 18 | D83: Mar | E83: 2012 | F83: 1 | G83: 4 | H83: 0.95 | I83: 0.95 | J83: 4
B84: 2012-03-19 | C84: 19 | D84: Mar | E84: 2012 | F84: 2 | G84: 4 | H84: 0.84 | I84: 0.77 | J84: 1
B85: 2012-03-20 | C85: 20 | D85: Mar | E85: 2012 | F85: 3 | G85: 4 | H85: 0.77 | I85: 0.92 | J85: 0
B86: 2012-03-21 | C86: 21 | D86: Mar | E86: 2012 | F86: 4 | G86: 4 | H86: 0.94 | I86: 0.98 | J86: 3
B87: 2012-03-22 | C87: 22 | D87: Mar | E87: 2012 | F87: 5 | G87: 4 | H87: 0.76 | I87: 0.96 | J87: 1
B88: 2012-03-23 | C88: 23 | D88: Mar | E88: 2012 | F88: 6 | G88: 4 | H88: 0.82 | I88: 0.98 | J88: 2
B89: 2012-03-24 | C89: 24 | D89: Mar | E89: 2012 | F89: 7 | G89: 4 | H89: 0.95 | I89: 0.75 | J89: 2
B90: 2012-03-25 | C90: 25 | D90: Mar | E90: 2012 | F90: 1 | G90: 5 | H90: 0.86 | I90: 0.81 | J90: 1
B91: 2012-03-26 | C91: 26 | D91: Mar | E91: 2012 | F91: 2 | G91: 5 | H91: 0.93 | I91: 0.79 | J91: 1
B92: 2012-03-27 | C92: 27 | D92: Mar | E92: 2012 | F92: 3 | G92: 5 | H92: 0.94 | I92: 0.78 | J92: 1
B93: 2012-03-28 | C93: 28 | D93: Mar | E93: 2012 | F93: 4 | G93: 5 | H93: 0.78 | I93: 1 | J93: 0
B94: 2012-03-29 | C94: 29 | D94: Mar | E94: 2012 | F94: 5 | G94: 5 | H94: 0.97 | I94: 0.76 | J94: 3
B95: 2012-03-30 | C95: 30 | D95: Mar | E95: 2012 | F95: 6 | G95: 5 | H95: 0.88 | I95: 0.93 | J95: 3
B96: 2012-03-31 | C96: 31 | D96: Mar | E96: 2012 | F96: 7 | G96: 5 | H96: 0.8 | I96: 0.79 | J96: 2
B97: 2012-04-01 | C97: 1 | D97: Apr | E97: 2012 | F97: 1 | G97: 1 | H97: 0.86 | I97: 0.85 | J97: 1
B98: 2012-04-02 | C98: 2 | D98: Apr | E98: 2012 | F98: 2 | G98: 1 | H98: 0.92 | I98: 0.95 | J98: 2
B99: 2012-04-03 | C99: 3 | D99: Apr | E99: 2012 | F99: 3 | G99: 1 | H99: 0.82 | I99: 0.8 | J99: 2
B100: 2012-04-04 | C100: 4 | D100: Apr | E100: 2012 | F100: 4 | G100: 1 | H100: 0.93 | I100: 0.97 | J100: 2
B101: 2012-04-05 | C101: 5 | D101: Apr | E101: 2012 | F101: 5 | G101: 1 | H101: 0.93 | I101: 0.97 | J101: 2
B102: 2012-04-06 | C102: 6 | D102: Apr | E102: 2012 | F102: 6 | G102: 1 | H102: 0.96 | I102: 0.75 | J102: 0
B103: 2012-04-07 | C103: 7 | D103: Apr | E103: 2012 | F103: 7 | G103: 1 | H103: 0.85 | I103: 0.97 | J103: 3
B104: 2012-04-08 | C104: 8 | D104: Apr | E104: 2012 | F104: 1 | G104: 2 | H104: 0.96 | I104: 0.81 | J104: 3
B105: 2012-04-09 | C105: 9 | D105: Apr | E105: 2012 | F105: 2 | G105: 2 | H105: 0.91 | I105: 0.85 | J105: 4
B106: 2012-04-10 | C106: 10 | D106: Apr | E106: 2012 | F106: 3 | G106: 2 | H106: 0.88 | I106: 0.78 | J106: 2
B107: 2012-04-11 | C107: 11 | D107: Apr | E107: 2012 | F107: 4 | G107: 2 | H107: 0.92 | I107: 0.85 | J107: 0
B108: 2012-04-12 | C108: 12 | D108: Apr | E108: 2012 | F108: 5 | G108: 2 | H108: 0.8 | I108: 0.89 | J108: 3
B109: 2012-04-13 | C109: 13 | D109: Apr | E109: 2012 | F109: 6 | G109: 2 | H109: 0.79 | I109: 0.83 | J109: 2
B110: 2012-04-14 | C110: 14 | D110: Apr | E110: 2012 | F110: 7 | G110: 2 | H110: 0.89 | I110: 0.89 | J110: 1
B111: 2012-04-15 | C111: 15 | D111: Apr | E111: 2012 | F111: 1 | G111: 3 | H111: 0.81 | I111: 0.96 | J111: 2
B112: 2012-04-16 | C112: 16 | D112: Apr | E112: 2012 | F112: 2 | G112: 3 | H112: 0.89 | I112: 0.85 | J112: 1
B113: 2012-04-17 | C113: 17 | D113: Apr | E113: 2012 | F113: 3 | G113: 3 | H113: 0.96 | I113: 0.98 | J113: 0
B114: 2012-04-18 | C114: 18 | D114: Apr | E114: 2012 | F114: 4 | G114: 3 | H114: 0.75 | I114: 0.8 | J114: 0
B115: 2012-04-19 | C115: 19 | D115: Apr | E115: 2012 | F115: 5 | G115: 3 | H115: 0.88 | I115: 0.89 | J115: 4
B116: 2012-04-20 | C116: 20 | D116: Apr | E116: 2012 | F116: 6 | G116: 3 | H116: 0.87 | I116: 0.89 | J116: 1
B117: 2012-04-21 | C117: 21 | D117: Apr | E117: 2012 | F117: 7 | G117: 3 | H117: 0.75 | I117: 0.89 | J117: 3
B118: 2012-04-22 | C118: 22 | D118: Apr | E118: 2012 | F118: 1 | G118: 4 | H118: 0.9 | I118: 0.97 | J118: 4
B119: 2012-04-23 | C119: 23 | D119: Apr | E119: 2012 | F119: 2 | G119: 4 | H119: 0.85 | I119: 0.75 | J119: 0
B120: 2012-04-24 | C120: 24 | D120: Apr | E120: 2012 | F120: 3 | G120: 4 | H120: 0.96 | I120: 0.9 | J120: 1
B121: 2012-04-25 | C121: 25 | D121: Apr | E121: 2012 | F121: 4 | G121: 4 | H121: 0.93 | I121: 0.95 | J121: 1
B122: 2012-04-26 | C122: 26 | D122: Apr | E122: 2012 | F122: 5 | G122: 4 | H122: 0.76 | I122: 0.8 | J122: 0
B123: 2012-04-27 | C123: 27 | D123: Apr | E123: 2012 | F123: 6 | G123: 4 | H123: 0.94 | I123: 0.81 | J123: 4
B124: 2012-04-28 | C124: 28 | D124: Apr | E124: 2012 | F124: 7 | G124: 4 | H124: 0.76 | I124: 0.91 | J124: 0
B125: 2012-04-29 | C125: 29 | D125: Apr | E125: 2012 | F125: 1 | G125: 5 | H125: 0.93 | I125: 0.87 | J125: 4
B126: 2012-04-30 | C126: 30 | D126: Apr | E126: 2012 | F126: 2 | G126: 5 | H126: 0.9 | I126: 0.87 | J126: 1
B127: 2012-05-01 | C127: 1 | D127: May | E127: 2012 | F127: 3 | G127: 1 | H127: 0.84 | I127: 0.86 | J127: 1
B128: 2012-05-02 | C128: 2 | D128: May | E128: 2012 | F128: 4 | G128: 1 | H128: 0.97 | I128: 0.87 | J128: 1
B129: 2012-05-03 | C129: 3 | D129: May | E129: 2012 | F129: 5 | G129: 1 | H129: 0.92 | I129: 0.77 | J129: 0
B130: 2012-05-04 | C130: 4 | D130: May | E130: 2012 | F130: 6 | G130: 1 | H130: 0.78 | I130: 0.86 | J130: 4
B131: 2012-05-05 | C131: 5 | D131: May | E131: 2012 | F131: 7 | G131: 1 | H131: 0.99 | I131: 0.92 | J131: 1
B132: 2012-05-06 | C132: 6 | D132: May | E132: 2012 | F132: 1 | G132: 2 | H132: 0.85 | I132: 0.97 | J132: 1
B133: 2012-05-07 | C133: 7 | D133: May | E133: 2012 | F133: 2 | G133: 2 | H133: 0.94 | I133: 0.79 | J133: 3
B134: 2012-05-08 | C134: 8 | D134: May | E134: 2012 | F134: 3 | G134: 2 | H134: 0.8 | I134: 0.76 | J134: 0
B135: 2012-05-09 | C135: =DAY(B135) -> 9 | D135: =TEXT(B135,"mmm") -> May | E135: =YEAR(B135) -> 2012 | F135: =WEEKDAY(B135,$G$2) -> 4 | G135: 2 | H135: 0.96 | I135: 0.92 | J135: 1
B136: =B135+1 -> 2012-05-10 | C136: 10 | D136: May | E136: 2012 | F136: 5 | G136: =IF(D136=D135,IF(F136=1,G135+1,G135),1) -> 2 | H136: 0.91 | I136: 0.92 | J136: 1
B137: 2012-05-11 | C137: 11 | D137: May | E137: 2012 | F137: 6 | G137: 2 | H137: 0.94 | I137: 0.75 | J137: 3
B138: 2012-05-12 | C138: 12 | D138: May | E138: 2012 | F138: 7 | G138: 2 | H138: 0.94 | I138: 1 | J138: 3
B139: 2012-05-13 | C139: 13 | D139: May | E139: 2012 | F139: 1 | G139: 3 | H139: 0.89 | I139: 0.81 | J139: 2
B140: 2012-05-14 | C140: 14 | D140: May | E140: 2012 | F140: 2 | G140: 3 | H140: 0.76 | I140: 0.96 | J140: 3
B141: 2012-05-15 | C141: 15 | D141: May | E141: 2012 | F141: 3 | G141: 3 | H141: 0.8 | I141: 0.86 | J141: 0
B142: 2012-05-16 | C142: 16 | D142: May | E142: 2012 | F142: 4 | G142: 3 | H142: 0.87 | I142: 0.85 | J142: 4
B143: 2012-05-17 | C143: 17 | D143: May | E143: 2012 | F143: 5 | G143: 3 | H143: 0.79 | I143: 0.85 | J143: 3
B144: 2012-05-18 | C144: 18 | D144: May | E144: 2012 | F144: 6 | G144: 3 | H144: 0.89 | I144: 0.8 | J144: 1
B145: 2012-05-19 | C145: 19 | D145: May | E145: 2012 | F145: 7 | G145: 3 | H145: 0.75 | I145: 0.91 | J145: 1
B146: 2012-05-20 | C146: 20 | D146: May | E146: 2012 | F146: 1 | G146: 4 | H146: 0.91 | I146: 0.92 | J146: 2
B147: 2012-05-21 | C147: 21 | D147: May | E147: 2012 | F147: 2 | G147: 4 | H147: 0.97 | I147: 0.8 | J147: 1
B148: 2012-05-22 | C148: 22 | D148: May | E148: 2012 | F148: 3 | G148: 4 | H148: 0.87 | I148: 0.88 | J148: 1
B149: 2012-05-23 | C149: 23 | D149: May | E149: 2012 | F149: 4 | G149: 4 | H149: 0.91 | I149: 0.9 | J149: 1
B150: 2012-05-24 | C150: 24 | D150: May | E150: 2012 | F150: 5 | G150: 4 | H150: 0.99 | I150: 0.93 | J150: 3
B151: 2012-05-25 | C151: 25 | D151: May | E151: 2012 | F151: 6 | G151: 4 | H151: 0.8 | I151: 0.98 | J151: 1
B152: 2012-05-26 | C152: 26 | D152: May | E152: 2012 | F152: 7 | G152: 4 | H152: 0.89 | I152: 0.98 | J152: 2
B153: 2012-05-27 | C153: 27 | D153: May | E153: 2012 | F153: 1 | G153: 5 | H153: 0.93 | I153: 0.98 | J153: 2
B154: 2012-05-28 | C154: 28 | D154: May | E154: 2012 | F154: 2 | G154: 5 | H154: 0.94 | I154: 0.87 | J154: 2
B155: 2012-05-29 | C155: 29 | D155: May | E155: 2012 | F155: 3 | G155: 5 | H155: 0.83 | I155: 0.9 | J155: 4
B156: 2012-05-30 | C156: 30 | D156: May | E156: 2012 | F156: 4 | G156: 5 | H156: 0.97 | I156: 0.8 | J156: 3
B157: 2012-05-31 | C157: 31 | D157: May | E157: 2012 | F157: 5 | G157: 5 | H157: 0.76 | I157: 0.91 | J157: 2
B158: 2012-06-01 | C158: 1 | D158: Jun | E158: 2012 | F158: 6 | G158: 1 | H158: 0.77 | I158: 1 | J158: 0
B159: 2012-06-02 | C159: 2 | D159: Jun | E159: 2012 | F159: 7 | G159: 1 | H159: 0.95 | I159: 0.86 | J159: 4
B160: 2012-06-03 | C160: 3 | D160: Jun | E160: 2012 | F160: 1 | G160: 2 | H160: 0.91 | I160: 0.76 | J160: 3
B161: 2012-06-04 | C161: 4 | D161: Jun | E161: 2012 | F161: 2 | G161: 2 | H161: 0.97 | I161: 0.99 | J161: 4
B162: 2012-06-05 | C162: 5 | D162: Jun | E162: 2012 | F162: 3 | G162: 2 | H162: 0.94 | I162: 0.84 | J162: 3
B163: 2012-06-06 | C163: 6 | D163: Jun | E163: 2012 | F163: 4 | G163: 2 | H163: 0.8 | I163: 0.81 | J163: 1
B164: 2012-06-07 | C164: 7 | D164: Jun | E164: 2012 | F164: 5 | G164: 2 | H164: 0.92 | I164: 0.76 | J164: 0
B165: 2012-06-08 | C165: 8 | D165: Jun | E165: 2012 | F165: 6 | G165: 2 | H165: 0.81 | I165: 0.82 | J165: 4
B166: 2012-06-09 | C166: 9 | D166: Jun | E166: 2012 | F166: 7 | G166: 2 | H166: 0.78 | I166: 0.92 | J166: 0
B167: 2012-06-10 | C167: 10 | D167: Jun | E167: 2012 | F167: 1 | G167: 3 | H167: 0.89 | I167: 0.78 | J167: 4
B168: 2012-06-11 | C168: 11 | D168: Jun | E168: 2012 | F168: 2 | G168: 3 | H168: 0.97 | I168: 0.81 | J168: 2
B169: 2012-06-12 | C169: 12 | D169: Jun | E169: 2012 | F169: 3 | G169: 3 | H169: 0.76 | I169: 0.87 | J169: 1
B170: 2012-06-13 | C170: 13 | D170: Jun | E170: 2012 | F170: 4 | G170: 3 | H170: 0.88 | I170: 0.99 | J170: 0
B171: 2012-06-14 | C171: 14 | D171: Jun | E171: 2012 | F171: 5 | G171: 3 | H171: 0.84 | I171: 0.75 | J171: 0
B172: 2012-06-15 | C172: 15 | D172: Jun | E172: 2012 | F172: 6 | G172: 3 | H172: 1 | I172: 0.81 | J172: 2
B173: 2012-06-16 | C173: 16 | D173: Jun | E173: 2012 | F173: 7 | G173: 3 | H173: 0.75 | I173: 0.89 | J173: 2
B174: 2012-06-17 | C174: 17 | D174: Jun | E174: 2012 | F174: 1 | G174: 4 | H174: 0.88 | I174: 0.83 | J174: 1
B175: 2012-06-18 | C175: 18 | D175: Jun | E175: 2012 | F175: 2 | G175: 4 | H175: 0.76 | I175: 0.76 | J175: 2
B176: 2012-06-19 | C176: 19 | D176: Jun | E176: 2012 | F176: 3 | G176: 4 | H176: 0.84 | I176: 0.88 | J176: 0
B177: 2012-06-20 | C177: 20 | D177: Jun | E177: 2012 | F177: 4 | G177: 4 | H177: 0.98 | I177: 1 | J177: 2
B178: 2012-06-21 | C178: 21 | D178: Jun | E178: 2012 | F178: 5 | G178: 4 | H178: 0.85 | I178: 0.95 | J178: 0
B179: 2012-06-22 | C179: 22 | D179: Jun | E179: 2012 | F179: 6 | G179: 4 | H179: 0.77 | I179: 0.93 | J179: 0
B180: 2012-06-23 | C180: 23 | D180: Jun | E180: 2012 | F180: 7 | G180: 4 | H180: 0.9 | I180: 0.98 | J180: 2
B181: 2012-06-24 | C181: 24 | D181: Jun | E181: 2012 | F181: 1 | G181: 5 | H181: 0.76 | I181: 0.95 | J181: 2
B182: 2012-06-25 | C182: 25 | D182: Jun | E182: 2012 | F182: 2 | G182: 5 | H182: 0.93 | I182: 0.97 | J182: 4
B183: 2012-06-26 | C183: 26 | D183: Jun | E183: 2012 | F183: 3 | G183: 5 | H183: 0.95 | I183: 0.91 | J183: 3
B184: 2012-06-27 | C184: 27 | D184: Jun | E184: 2012 | F184: 4 | G184: 5 | H184: 1 | I184: 0.77 | J184: 1
B185: 2012-06-28 | C185: 28 | D185: Jun | E185: 2012 | F185: 5 | G185: 5 | H185: 0.82 | I185: 0.83 | J185: 4
B186: 2012-06-29 | C186: 29 | D186: Jun | E186: 2012 | F186: 6 | G186: 5 | H186: 0.79 | I186: 0.89 | J186: 4
B187: 2012-06-30 | C187: 30 | D187: Jun | E187: 2012 | F187: 7 | G187: 5 | H187: 0.99 | I187: 0.84 | J187: 1
B188: 2012-07-01 | C188: 1 | D188: Jul | E188: 2012 | F188: 1 | G188: 1 | H188: 0.97 | I188: 0.97 | J188: 1
B189: 2012-07-02 | C189: 2 | D189: Jul | E189: 2012 | F189: 2 | G189: 1 | H189: 0.81 | I189: 0.95 | J189: 2
B190: 2012-07-03 | C190: 3 | D190: Jul | E190: 2012 | F190: 3 | G190: 1 | H190: 0.97 | I190: 0.96 | J190: 1
B191: 2012-07-04 | C191: 4 | D191: Jul | E191: 2012 | F191: 4 | G191: 1 | H191: 0.75 | I191: 0.97 | J191: 0
B192: 2012-07-05 | C192: 5 | D192: Jul | E192: 2012 | F192: 5 | G192: 1 | H192: 0.79 | I192: 0.94 | J192: 1
B193: 2012-07-06 | C193: 6 | D193: Jul | E193: 2012 | F193: 6 | G193: 1 | H193: 0.83 | I193: 0.95 | J193: 2
B194: 2012-07-07 | C194: 7 | D194: Jul | E194: 2012 | F194: 7 | G194: 1 | H194: 0.83 | I194: 0.75 | J194: 3
B195: 2012-07-08 | C195: 8 | D195: Jul | E195: 2012 | F195: 1 | G195: 2 | H195: 0.8 | I195: 0.79 | J195: 1
B196: 2012-07-09 | C196: 9 | D196: Jul | E196: 2012 | F196: 2 | G196: 2 | H196: 0.82 | I196: 0.76 | J196: 3
B197: 2012-07-10 | C197: 10 | D197: Jul | E197: 2012 | F197: 3 | G197: 2 | H197: 0.99 | I197: 0.79 | J197: 1
B198: 2012-07-11 | C198: 11 | D198: Jul | E198: 2012 | F198: 4 | G198: 2 | H198: 0.97 | I198: 0.83 | J198: 1
B199: 2012-07-12 | C199: =DAY(B199) -> 12 | D199: =TEXT(B199,"mmm") -> Jul | E199: =YEAR(B199) -> 2012 | F199: =WEEKDAY(B199,$G$2) -> 5 | G199: 2 | H199: 0.88 | I199: 0.98 | J199: 2
B200: =B199+1 -> 2012-07-13 | C200: 13 | D200: Jul | E200: 2012 | F200: 6 | G200: =IF(D200=D199,IF(F200=1,G199+1,G199),1) -> 2 | H200: 1 | I200: 0.97 | J200: 3
B201: 2012-07-14 | C201: 14 | D201: Jul | E201: 2012 | F201: 7 | G201: 2 | H201: 0.87 | I201: 0.77 | J201: 0
... 170 more rows
